fUSD/lending_fUSD_20260513
["ID","MTS","AMOUNT","RATE_DAILY","PERIOD"]
[422150599,1778623850000,-300.0,0.00037126,2]
[422150609,1778623850000,-300.0,0.00037126,2]
[422150612,1778623850000,-300.0,0.00037162,2]
[422150605,1778623850000,-300.0,0.00037126,2]
[422150602,1778623850000,-1094.29459015,0.00037126,2]
[422150597,1778623850000,-343.84381003,0.00037126,2]
[422150596,1778623850000,-369.9993154,0.00037126,2]
[422150610,1778623850000,-812.3859,0.00037149,2]
[422150601,1778623850000,-300.0,0.00037126,2]
[422150608,1778623850000,-300.06806865,0.00037126,2]
[422150613,1778623850000,-300.0,0.00037162,2]
[422150604,1778623850000,-300.0,0.00037126,2]
[422150606,1778623850000,-300.0,0.00037126,2]
[422150614,1778623850000,-300.0,0.00037162,2]
[422150615,1778623850000,-300.0,0.00037162,2]
[422150624,1778623850000,-300.0,0.00037162,2]
[422150617,1778623850000,-300.0,0.00037162,2]
[422150616,1778623850000,-300.0,0.00037162,2]
[422150619,1778623850000,-491.19814231,0.00037162,2]
[422150620,1778623850000,-300.0,0.00037162,2]
[422150622,1778623850000,-300.0,0.00037162,2]
[422150623,1778623850000,-604.21547136,0.00037162,2]
[422150598,1778623850000,-1146.71946024,0.00037126,2]
[422150611,1778623850000,-2027.8465,0.00037149,2]
[422150600,1778623850000,-300.0,0.00037126,2]
[422150618,1778623850000,-492.49408754,0.00037162,2]
[422150593,1778623850000,-300.0,0.00037126,2]
[422150567,1778623850000,-1911.66155628,0.00037126,2]
[422150568,1778623850000,-343.84381003,0.00037126,2]
[422150569,1778623850000,-526.68525168,0.00037126,2]
[422150572,1778623850000,-300.0,0.00037126,2]
[422150570,1778623850000,-1146.71946024,0.00037126,2]
[422150573,1778623850000,-864.10865204,0.00037126,2]
[422150571,1778623850000,-309.46605894,0.00037126,2]
[422150578,1778623850000,-451.72868136,0.00037126,2]
[422150577,1778623850000,-300.0,0.00037126,2]
[422150576,1778623850000,-300.0,0.00037126,2]
[422150574,1778623850000,-1754.96949453,0.00037126,2]
[422150580,1778623850000,-509.69657681,0.00037126,2]
[422150594,1778623850000,-727.92641506,0.00037126,2]
[422150575,1778623850000,-329.45075992,0.00037126,2]
[422150582,1778623850000,-300.0,0.00037126,2]
[422150583,1778623850000,-483.88780455,0.00037126,2]
[422150581,1778623850000,-440.45546341,0.00037126,2]
[422150589,1778623850000,-300.0,0.00037126,2]
[422150587,1778623850000,-300.0,0.00037126,2]
[422150590,1778623850000,-300.0,0.00037126,2]
[422150588,1778623850000,-300.00000001,0.00037126,2]
[422150585,1778623850000,-300.0,0.00037126,2]
[422150586,1778623850000,-527.40352978,0.00037126,2]
[422150592,1778623850000,-1066.50381929,0.00037126,2]
[422150591,1778623850000,-300.0,0.00037126,2]
[422150595,1778623850000,-300.0,0.00037126,2]
[422150579,1778623850000,-300.0,0.00037126,2]
[422150621,1778623850000,-300.0,0.00037162,2]
[422150584,1778623850000,-309.70196002,0.00037126,2]
[422150634,1778623850000,-300.0,0.00037162,2]
[422150654,1778623850000,-310.77293504,0.00037162,2]
[422150656,1778623850000,-300.0,0.00037162,2]
[422150652,1778623850000,-300.0,0.00037162,2]
[422150659,1778623850000,-576.93890108,0.00037162,2]
[422150660,1778623850000,-300.0,0.00037162,2]
[422150663,1778623850000,-300.0,0.00037162,2]
[422150667,1778623850000,-483.88780455,0.00037162,2]
[422150665,1778623850000,-300.0,0.00037162,2]
[422150666,1778623850000,-300.0,0.00037162,2]
[422150668,1778623850000,-309.70196001,0.00037162,2]
[422150673,1778623850000,-300.0,0.00037162,2]
[422150674,1778623850000,-300.0,0.00037162,2]
[422150657,1778623850000,-463.6616139,0.00037162,2]
[422150664,1778623850000,-300.0,0.00037162,2]
[422150670,1778623850000,-300.0,0.00037162,2]
[422150669,1778623850000,-300.0,0.00037162,2]
[422150676,1778623850000,-300.0,0.00037162,2]
[422150675,1778623850000,-399.64911484,0.00037162,2]
[422150678,1778623850000,-300.0,0.00037162,2]
[422150677,1778623850000,-300.0,0.00037162,2]
[422150679,1778623850000,-300.0,0.00037162,2]
[422150681,1778623850000,-300.0,0.00037162,2]
[422150682,1778623850000,-492.49408754,0.00037162,2]
[422150683,1778623850000,-300.0,0.00037162,2]
[422150680,1778623850000,-300.0,0.00037162,2]
[422150626,1778623850000,-300.0,0.00037162,2]
[422150672,1778623850000,-300.0,0.00037162,2]
[422150653,1778623850000,-300.0,0.00037162,2]
[422150671,1778623850000,-378.28112311,0.00037162,2]
[422150655,1778623850000,-300.0,0.00037162,2]
[422150658,1778623850000,-300.0,0.00037162,2]
[422150635,1778623850000,-300.0,0.00037162,2]
[422150625,1778623850000,-300.0,0.00037162,2]
[422150636,1778623850000,-300.0,0.00037162,2]
[422150632,1778623850000,-300.0,0.00037162,2]
[422150631,1778623850000,-301.67321972,0.00037162,2]
[422150627,1778623850000,-527.54022817,0.00037162,2]
[422150628,1778623850000,-300.0,0.00037162,2]
[422150629,1778623850000,-893.04482543,0.00037162,2]
[422150633,1778623850000,-300.45062341,0.00037162,2]
[422150639,1778623850000,-300.0,0.00037162,2]
[422150637,1778623850000,-300.0,0.00037162,2]
[422150644,1778623850000,-526.68525168,0.00037162,2]
[422150648,1778623850000,-300.0,0.00037162,2]
[422150630,1778623850000,-300.0,0.00037162,2]
[422150643,1778623850000,-300.0,0.00037162,2]
[422150661,1778623850000,-451.72868137,0.00037162,2]
[422150662,1778623850000,-300.0,0.00037162,2]
[422150651,1778623850000,-1754.96949453,0.00037162,2]
[422150647,1778623850000,-309.46605895,0.00037162,2]
[422150646,1778623850000,-300.0,0.00037162,2]
[422150640,1778623850000,-853.86030012,0.00037162,2]
[422150650,1778623850000,-300.0,0.00037162,2]
[422150649,1778623850000,-864.10865205,0.00037162,2]
[422150645,1778623850000,-300.0,0.00037162,2]
[422150641,1778623850000,-300.0,0.00037162,2]
[422150642,1778623850000,-1911.66155628,0.00037162,2]
[422150638,1778623850000,-318.97554613,0.00037162,2]
[422150727,1778623851000,-195.61,0.00037534,7]
[422150730,1778623851000,-1000.0,0.00037615,2]
[422150724,1778623851000,-295.22415065,0.00037524,30]
[422150732,1778623851000,-1444.0,0.00037753,120]
[422150725,1778623851000,-195.62,0.00037534,7]
[422150722,1778623851000,-157.03,0.000375,30]
[422150717,1778623851000,-179.3,0.0003742,5]
[422150716,1778623851000,-905.86,0.00037417,30]
[422150715,1778623851000,-319.0,0.00037174,2]
[422150721,1778623851000,-3540.0,0.00037467,2]
[422150723,1778623851000,-1500.0,0.000375,26]
[422150718,1778623851000,-179.3,0.0003742,5]
[422150714,1778623851000,-356.0,0.00037173,2]
[422150726,1778623851000,-195.62,0.00037534,7]
[422150736,1778623851000,-255.42080281,0.00038,5]
[422150731,1778623851000,-1000.0,0.00037615,2]
[422150729,1778623851000,-2027.8465,0.00037613,2]
[422150734,1778623851000,-304.2523277,0.00038,2]
[422150742,1778623851000,-150.14,0.0003822,60]
[422150733,1778623851000,-157.71229644,0.00037999,2]
[422150740,1778623851000,-2027.8465,0.00038077,2]
[422150737,1778623851000,-2390.49,0.00038,14]
[422150743,1778623851000,-157.71229644,0.00038273,2]
[422150738,1778623851000,-1500.0,0.00038,26]
[422150745,1778623851000,-2509.12,0.00038276,60]
[422150744,1778623851000,-200.0,0.00038275,6]
[422150735,1778623851000,-499.99999908,0.00038,2]
[422150720,1778623851000,-1353.0,0.00037467,2]
[422150728,1778623851000,-195.62,0.00037534,7]
[422150719,1778623851000,-500.0,0.0003745,30]
[422150691,1778623851000,-300.0,0.00037162,2]
[422150712,1778623851000,-1094.29459015,0.00037162,2]
[422150684,1778623851000,-300.0,0.00037162,2]
[422150741,1778623851000,-275.32714793,0.000381,33]
[422150688,1778623851000,-300.0,0.00037162,2]
[422150687,1778623851000,-300.0,0.00037162,2]
[422150685,1778623851000,-300.0,0.00037162,2]
[422150689,1778623851000,-300.0,0.00037162,2]
[422150696,1778623851000,-300.0,0.00037162,2]
[422150692,1778623851000,-1066.50381929,0.00037162,2]
[422150690,1778623851000,-527.54022817,0.00037162,2]
[422150686,1778623851000,-604.21547136,0.00037162,2]
[422150694,1778623851000,-300.0,0.00037162,2]
[422150693,1778623851000,-893.04482543,0.00037162,2]
[422150695,1778623851000,-725.78568352,0.00037162,2]
[422150713,1778623851000,-1332.0,0.00037165,2]
[422150698,1778623851000,-300.45062341,0.00037162,2]
[422150702,1778623851000,-300.0,0.00037162,2]
[422150705,1778623851000,-853.86030012,0.00037162,2]
[422150704,1778623851000,-300.0,0.00037162,2]
[422150706,1778623851000,-300.0,0.00037162,2]
[422150703,1778623851000,-300.0,0.00037162,2]
[422150707,1778623851000,-1911.66155628,0.00037162,2]
[422150701,1778623851000,-300.0,0.00037162,2]
[422150709,1778623851000,-343.84381003,0.00037162,2]
[422150708,1778623851000,-300.0,0.00037162,2]
[422150699,1778623851000,-348.36222459,0.00037162,2]
[422150700,1778623851000,-300.0,0.00037162,2]
[422150710,1778623851000,-300.0,0.00037162,2]
[422150711,1778623851000,-526.68525168,0.00037162,2]
[422150697,1778623851000,-301.67321972,0.00037162,2]
[422150739,1778623851000,-812.3859,0.00038077,2]
[422150747,1778623851000,-200.0,0.00038276,6]
[422150805,1778623851000,-500.0,0.00038356,2]
[422150777,1778623851000,-500.0,0.00038356,2]
[422150782,1778623851000,-500.0,0.00038356,2]
[422150781,1778623851000,-500.0,0.00038356,2]
[422150778,1778623851000,-500.0,0.00038356,2]
[422150780,1778623851000,-500.0,0.00038356,2]
[422150786,1778623851000,-500.0,0.00038356,2]
[422150796,1778623851000,-500.0,0.00038356,2]
[422150788,1778623851000,-385.45,0.00038356,2]
[422150790,1778623851000,-643.4294937,0.00038356,7]
[422150797,1778623851000,-500.0,0.00038356,2]
[422150791,1778623851000,-500.0,0.00038356,2]
[422150789,1778623851000,-1000.0,0.00038356,7]
[422150787,1778623851000,-500.0,0.00038356,2]
[422150776,1778623851000,-500.0,0.00038356,2]
[422150798,1778623851000,-500.0,0.00038356,2]
[422150792,1778623851000,-500.0,0.00038356,2]
[422150794,1778623851000,-500.0,0.00038356,2]
[422150793,1778623851000,-500.0,0.00038356,2]
[422150800,1778623851000,-500.0,0.00038356,2]
[422150803,1778623851000,-500.0,0.00038356,2]
[422150799,1778623851000,-500.0,0.00038356,2]
[422150801,1778623851000,-500.0,0.00038356,2]
[422150802,1778623851000,-500.0,0.00038356,2]
[422150806,1778623851000,-500.0,0.00038356,2]
[422150753,1778623851000,-500.0,0.00038356,2]
[422150804,1778623851000,-500.0,0.00038356,2]
[422150807,1778623851000,-500.0,0.00038356,2]
[422150808,1778623851000,-500.0,0.00038356,2]
[422150795,1778623851000,-500.0,0.00038356,2]
[422150779,1778623851000,-500.0,0.00038356,2]
[422150785,1778623851000,-500.0,0.00038356,2]
[422150774,1778623851000,-500.0,0.00038356,2]
[422150754,1778623851000,-500.0,0.00038356,2]
[422150757,1778623851000,-500.0,0.00038356,2]
[422150775,1778623851000,-500.0,0.00038356,2]
[422150755,1778623851000,-500.0,0.00038356,2]
[422150746,1778623851000,-200.0,0.00038276,6]
[422150748,1778623851000,-200.0,0.00038276,6]
[422150749,1778623851000,-507.0,0.00038287,2]
[422150750,1778623851000,-158.82843331,0.00038329,120]
[422150751,1778623851000,-500.0,0.00038356,2]
[422150752,1778623851000,-500.0,0.00038356,2]
[422150758,1778623851000,-500.0,0.00038356,2]
[422150761,1778623851000,-500.0,0.00038356,2]
[422150760,1778623851000,-500.0,0.00038356,2]
[422150762,1778623851000,-500.0,0.00038356,2]
[422150756,1778623851000,-500.0,0.00038356,2]
[422150770,1778623851000,-500.0,0.00038356,2]
[422150772,1778623851000,-500.0,0.00038356,2]
[422150763,1778623851000,-412.11884607,0.00038356,2]
[422150773,1778623851000,-500.0,0.00038356,2]
[422150783,1778623851000,-500.0,0.00038356,2]
[422150767,1778623851000,-500.0,0.00038356,2]
[422150769,1778623851000,-500.0,0.00038356,2]
[422150784,1778623851000,-500.0,0.00038356,2]
[422150764,1778623851000,-500.0,0.00038356,2]
[422150766,1778623851000,-500.0,0.00038356,2]
[422150759,1778623851000,-500.0,0.00038356,2]
[422150768,1778623851000,-403.63901603,0.00038356,2]
[422150765,1778623851000,-500.0,0.00038356,2]
[422150771,1778623851000,-500.0,0.00038356,2]
[422150846,1778623852000,-157.57,0.00038821,120]
[422150842,1778623852000,-197.0,0.0003861,2]
[422150847,1778623852000,-157.71229644,0.00038821,2]
[422150848,1778623852000,-9581.85933216,0.00038834,2]
[422150845,1778623852000,-180.49,0.00038732,30]
[422150836,1778623852000,-151.0,0.000385,30]
[422150840,1778623852000,-2027.8465,0.00038542,2]
[422150844,1778623852000,-157.57,0.00038721,120]
[422150841,1778623852000,-157.71229644,0.00038547,2]
[422150843,1778623852000,-152.0,0.00038631,7]
[422150850,1778623852000,-228.6716807,0.00038918,2]
[422150857,1778623852000,-3110.99889039,0.00039,14]
[422150851,1778623852000,-157.57,0.00038921,120]
[422150854,1778623852000,-31285.05661689,0.00039,2]
[422150853,1778623852000,-303.0,0.00039,30]
[422150852,1778623852000,-155.0,0.00038997,2]
[422150858,1778623852000,-150.0,0.00039,2]
[422150855,1778623852000,-1329.16559567,0.00039,120]
[422150856,1778623852000,-1007.29138247,0.00039,2]
[422150860,1778623852000,-2027.8467,0.00039006,2]
[422150861,1778623852000,-507.0,0.00039006,3]
[422150862,1778623852000,-157.57,0.00039021,120]
[422150863,1778623852000,-157.71229644,0.00039095,2]
[422150839,1778623852000,-151.0,0.000385,30]
[422150849,1778623852000,-2000.0,0.000389,7]
[422150837,1778623852000,-151.0,0.000385,30]
[422150859,1778623852000,-812.3861,0.00039006,2]
[422150835,1778623852000,-327.548371,0.000385,30]
[422150810,1778623852000,-500.0,0.00038356,2]
[422150811,1778623852000,-500.0,0.00038356,2]
[422150809,1778623852000,-500.0,0.00038356,2]
[422150814,1778623852000,-549.20114907,0.00038356,2]
[422150813,1778623852000,-500.0,0.00038356,2]
[422150812,1778623852000,-500.0,0.00038356,2]
[422150820,1778623852000,-890.55,0.00038356,120]
[422150821,1778623852000,-929.31,0.00038492,2]
[422150815,1778623852000,-1000.0,0.00038356,7]
[422150819,1778623852000,-151.0,0.00038356,30]
[422150816,1778623852000,-1000.0,0.00038356,7]
[422150822,1778623852000,-929.31,0.00038492,2]
[422150838,1778623852000,-151.0,0.000385,30]
[422150817,1778623852000,-931.8569684,0.00038356,7]
[422150824,1778623852000,-929.31,0.00038494,2]
[422150823,1778623852000,-929.31,0.00038494,2]
[422150834,1778623852000,-327.548371,0.000385,30]
[422150827,1778623852000,-929.31,0.00038496,2]
[422150826,1778623852000,-929.29,0.00038496,2]
[422150825,1778623852000,-929.31,0.00038494,2]
[422150829,1778623852000,-49633.30527496,0.000385,2]
[422150831,1778623852000,-151.0,0.000385,30]
[422150833,1778623852000,-327.548371,0.000385,30]
[422150832,1778623852000,-327.548371,0.000385,30]
[422150828,1778623852000,-929.31,0.00038496,2]
[422150830,1778623852000,-151.0,0.000385,30]
[422150818,1778623852000,-151.0,0.00038356,30]
[422150864,1778623852000,-2390.49,0.000391,14]
[422150886,1778623852000,-1528.46,0.00039266,7]
[422150866,1778623852000,-302.27632886,0.000391,30]
[422150900,1778623852000,-157.57,0.00039321,120]
[422150899,1778623852000,-377.44,0.00039313,30]
[422150902,1778623852000,-154.98,0.00039329,30]
[422150898,1778623852000,-755.44,0.00039313,30]
[422150897,1778623852000,-380.64,0.00039312,30]
[422150901,1778623852000,-154.19,0.00039328,30]
[422150904,1778623852000,-1528.46,0.00039353,2]
[422150906,1778623852000,-756.5,0.00039355,2]
[422150908,1778623852000,-755.44,0.00039356,2]
[422150907,1778623852000,-380.64,0.00039355,2]
[422150914,1778623852000,-1815.08,0.00039388,120]
[422150896,1778623852000,-756.5,0.00039312,30]
[422150905,1778623852000,-1528.23,0.00039354,2]
[422150915,1778623852000,-1528.46,0.00039396,7]
[422150910,1778623852000,-157.71229644,0.00039369,2]
[422150913,1778623852000,-154.98,0.00039381,2]
[422150909,1778623852000,-377.44,0.00039356,2]
[422150911,1778623852000,-1000.0,0.00039369,10]
[422150912,1778623852000,-154.19,0.0003938,2]
[422150916,1778623852000,-1528.23,0.00039397,7]
[422150918,1778623852000,-377.44,0.00039399,7]
[422150919,1778623852000,-756.5,0.00039399,7]
[422150921,1778623852000,-157.57,0.00039421,120]
[422150920,1778623852000,-380.64,0.00039399,7]
[422150903,1778623852000,-905.86,0.00039352,30]
[422150895,1778623852000,-1528.23,0.0003931,30]
[422150917,1778623852000,-755.44,0.00039399,7]
[422150892,1778623852000,-154.19,0.00039277,7]
[422150894,1778623852000,-1528.46,0.00039309,30]
[422150867,1778623852000,-302.27632884,0.000391,30]
[422150869,1778623852000,-157.57,0.00039121,120]
[422150871,1778623852000,-157.57,0.00039221,120]
[422150870,1778623852000,-1000.0,0.00039183,2]
[422150879,1778623852000,-377.44,0.00039227,2]
[422150868,1778623852000,-302.27632884,0.000391,30]
[422150872,1778623852000,-1528.46,0.00039223,2]
[422150873,1778623852000,-1528.23,0.00039224,2]
[422150874,1778623852000,-756.5,0.00039226,2]
[422150878,1778623852000,-154.98,0.00039227,2]
[422150876,1778623852000,-154.19,0.00039226,2]
[422150877,1778623852000,-755.44,0.00039227,2]
[422150865,1778623852000,-227.23986923,0.000391,30]
[422150880,1778623852000,-159.0818048,0.00039227,120]
[422150875,1778623852000,-380.64,0.00039226,2]
[422150885,1778623852000,-382.19,0.00039234,2]
[422150887,1778623852000,-1528.23,0.00039267,7]
[422150881,1778623852000,-410.3534786,0.00039227,120]
[422150883,1778623852000,-1000.0,0.00039232,10]
[422150889,1778623852000,-380.64,0.00039269,7]
[422150888,1778623852000,-756.5,0.00039269,7]
[422150891,1778623852000,-377.44,0.0003927,7]
[422150890,1778623852000,-755.44,0.0003927,7]
[422150882,1778623852000,-161.9804885,0.00039227,120]
[422150884,1778623852000,-955.46,0.00039234,10]
[422150893,1778623852000,-154.98,0.00039278,7]
[422150953,1778623853000,-377.44,0.00039572,30]
[422150947,1778623853000,-380.64,0.00039529,7]
[422150950,1778623853000,-1528.46,0.0003957,30]
[422150948,1778623853000,-154.19,0.00039534,2]
[422150945,1778623853000,-377.44,0.00039529,7]
[422150951,1778623853000,-1528.23,0.00039571,30]
[422150952,1778623853000,-755.44,0.00039572,30]
[422150949,1778623853000,-154.98,0.00039535,2]
[422150960,1778623853000,-756.5,0.00039615,2]
[422150954,1778623853000,-756.5,0.00039572,30]
[422150957,1778623853000,-154.98,0.00039586,7]
[422150959,1778623853000,-1528.46,0.00039614,2]
[422150946,1778623853000,-756.5,0.00039529,7]
[422150956,1778623853000,-154.19,0.00039585,7]
[422150958,1778623853000,-1528.23,0.00039614,2]
[422150961,1778623853000,-380.64,0.00039615,2]
[422150962,1778623853000,-755.44,0.00039616,2]
[422150963,1778623853000,-377.44,0.00039616,2]
[422150955,1778623853000,-380.64,0.00039572,30]
[422150944,1778623853000,-755.44,0.00039529,7]
[422150937,1778623853000,-755.44,0.00039486,2]
[422150940,1778623853000,-1000.0,0.00039506,10]
[422150968,1778623853000,-1528.23,0.00039657,7]
[422150924,1778623853000,-154.98,0.00039432,7]
[422150925,1778623853000,-1528.23,0.0003944,30]
[422150926,1778623853000,-1528.46,0.0003944,30]
[422150922,1778623853000,-39401.69669405,0.00039427,2]
[422150923,1778623853000,-154.19,0.00039431,7]
[422150929,1778623853000,-755.44,0.00039443,30]
[422150927,1778623853000,-756.5,0.00039442,30]
[422150928,1778623853000,-380.64,0.00039442,30]
[422150933,1778623853000,-1528.46,0.00039483,2]
[422150932,1778623853000,-154.19,0.00039483,30]
[422150930,1778623853000,-377.44,0.00039443,30]
[422150934,1778623853000,-1528.23,0.00039484,2]
[422150935,1778623853000,-756.5,0.00039485,2]
[422150936,1778623853000,-380.64,0.00039485,2]
[422150939,1778623853000,-35701.60815525,0.0003949,2]
[422150938,1778623853000,-377.44,0.00039486,2]
[422150941,1778623853000,-157.57251286,0.00039521,120]
[422150942,1778623853000,-1528.23,0.00039527,7]
[422150943,1778623853000,-1528.46,0.00039527,7]
[422150931,1778623853000,-154.98,0.00039483,30]
[422150964,1778623853000,-154.98,0.00039637,30]
[422150969,1778623853000,-1528.46,0.00039657,7]
[422150991,1778623853000,-220.59451455,0.00039723,2]
[422150993,1778623853000,-300.0,0.00039726,120]
[422150994,1778623853000,-156.61639997,0.00039732,2]
[422150995,1778623853000,-154.98,0.0003974,7]
[422150997,1778623853000,-1528.23,0.00039744,2]
[422150996,1778623853000,-154.19,0.0003974,7]
[422151002,1778623853000,-380.64,0.00039745,2]
[422150998,1778623853000,-1528.46,0.00039744,2]
[422151004,1778623853000,-1000.0,0.0003978,10]
[422151001,1778623853000,-756.5,0.00039745,2]
[422151003,1778623853000,-150.14,0.0003975,120]
[422151000,1778623853000,-377.44,0.00039745,2]
[422151005,1778623853000,-1528.46,0.00039787,7]
[422151006,1778623853000,-1528.23,0.00039788,7]
[422151007,1778623853000,-756.5,0.00039788,7]
[422151008,1778623853000,-380.64,0.00039788,7]
[422151009,1778623853000,-755.44,0.00039789,7]
[422151010,1778623853000,-377.44,0.00039789,7]
[422150967,1778623853000,-157.71229644,0.00039643,2]
[422150988,1778623853000,-169.21575181,0.00039722,2]
[422150990,1778623853000,-152.92557941,0.00039722,2]
[422150999,1778623853000,-755.44,0.00039745,2]
[422150989,1778623853000,-166.84079669,0.00039722,2]
[422150965,1778623853000,-154.19,0.00039637,30]
[422150992,1778623853000,-507.0,0.00039725,4]
[422150966,1778623853000,-1000.0,0.00039643,10]
[422150970,1778623853000,-756.5,0.00039658,7]
[422150971,1778623853000,-380.64,0.00039658,7]
[422150972,1778623853000,-755.44,0.00039659,7]
[422150974,1778623853000,-193.5860881,0.00039666,2]
[422150980,1778623853000,-154.98,0.00039689,2]
[422150975,1778623853000,-160.32818414,0.00039688,2]
[422150976,1778623853000,-160.29401701,0.00039688,2]
[422150973,1778623853000,-377.44,0.00039659,7]
[422150978,1778623853000,-160.22329479,0.00039688,2]
[422150979,1778623853000,-154.19,0.00039688,2]
[422150981,1778623853000,-1528.46,0.000397,30]
[422150986,1778623853000,-380.64,0.00039702,30]
[422150985,1778623853000,-756.5,0.00039702,30]
[422150983,1778623853000,-755.44,0.00039702,30]
[422150984,1778623853000,-377.44,0.00039702,30]
[422150977,1778623853000,-165.40543685,0.00039688,2]
[422150987,1778623853000,-1815.17,0.00039715,120]
[422150982,1778623853000,-1528.23,0.00039701,30]
[422151043,1778623854000,-167.47163586,0.00039887,2]
[422151047,1778623854000,-154.98,0.00039894,7]
[422151052,1778623854000,-186.73118963,0.00039898,2]
[422151048,1778623854000,-154.19,0.00039894,7]
[422151050,1778623854000,-264.81825113,0.00039895,2]
[422151042,1778623854000,-152.07608514,0.00039887,2]
[422151045,1778623854000,-200.0,0.00039887,2]
[422151046,1778623854000,-198.09186508,0.0003989,2]
[422151053,1778623854000,-184.58448329,0.00039898,2]
[422151051,1778623854000,-172.39865641,0.00039898,2]
[422151044,1778623854000,-152.06732475,0.00039887,2]
[422151049,1778623854000,-165.32359213,0.00039895,2]
[422151055,1778623854000,-999.88,0.00039899,2]
[422151058,1778623854000,-2001.4824,0.00039899,2]
[422151056,1778623854000,-2000.0,0.00039899,2]
[422151061,1778623854000,-155.5261094,0.00039899,2]
[422151064,1778623854000,-1000.0,0.00039917,10]
[422151060,1778623854000,-156.34150669,0.00039899,2]
[422151062,1778623854000,-200.03,0.000399,16]
[422151057,1778623854000,-10000.0,0.00039899,2]
[422151059,1778623854000,-10032.8107,0.00039899,2]
[422151063,1778623854000,-157.71229644,0.00039917,2]
[422151065,1778623854000,-1528.23,0.00039918,7]
[422151075,1778623854000,-380.64,0.00039961,30]
[422151037,1778623854000,-181.69135605,0.00039887,2]
[422151054,1778623854000,-155.55555556,0.00039898,2]
[422151038,1778623854000,-185.32117536,0.00039887,2]
[422151016,1778623854000,-377.44,0.00039832,30]
[422151041,1778623854000,-239.22988938,0.00039887,2]
[422151011,1778623854000,-154.98,0.00039791,30]
[422151015,1778623854000,-755.44,0.00039832,30]
[422151012,1778623854000,-154.19,0.00039791,30]
[422151014,1778623854000,-1528.46,0.00039831,30]
[422151013,1778623854000,-1528.23,0.00039831,30]
[422151017,1778623854000,-756.5,0.00039832,30]
[422151019,1778623854000,-154.19,0.00039842,2]
[422151025,1778623854000,-756.5,0.00039875,2]
[422151020,1778623854000,-154.98,0.00039843,2]
[422151029,1778623854000,-177.77777778,0.00039876,2]
[422151077,1778623854000,-755.44,0.00039962,30]
[422151022,1778623854000,-1528.46,0.00039874,2]
[422151026,1778623854000,-380.64,0.00039875,2]
[422151018,1778623854000,-380.64,0.00039832,30]
[422151024,1778623854000,-377.44,0.00039875,2]
[422151027,1778623854000,-154.96430161,0.00039876,2]
[422151028,1778623854000,-171.42857143,0.00039876,2]
[422151030,1778623854000,-169.09960077,0.00039876,2]
[422151032,1778623854000,-207.7204455,0.00039887,2]
[422151031,1778623854000,-171.60323892,0.00039876,2]
[422151036,1778623854000,-152.69379332,0.00039887,2]
[422151040,1778623854000,-175.22800948,0.00039887,2]
[422151033,1778623854000,-162.83326725,0.00039887,2]
[422151035,1778623854000,-198.99944383,0.00039887,2]
[422151034,1778623854000,-151.69973616,0.00039887,2]
[422151039,1778623854000,-184.24406006,0.00039887,2]
[422151076,1778623854000,-1528.46,0.00039961,30]
[422151023,1778623854000,-755.44,0.00039875,2]
[422151067,1778623854000,-377.44,0.00039918,7]